Cogmind - Beta 15 @@@ ROGUE MODE // 2025.08.14 @ 14:12:27 Player: LightKnight Result: Destroyed by P-80 Master with Gamma Rifle Performance ------------- Evolutions (7) 3500 Regions Visited (24) 4800 Robots Destroyed (193) 965 Value Destroyed (7074) 7074 Prototype IDs (54) 1080 Alien Tech Used (0) 0 Bonus (626) 626 TOTAL SCORE: 18045 Bonus ------- High Alert Combat Kills 1040 Follower Combat Kills 2954 Network Hubs Disabled 200 Met Data Miner 300 Met R17 at Cetus 500 Friendly Fire -4368 Cogmind --------- Core Integrity 0/1300 Matter 249/300 Energy 99/100 System Corruption 2% Temperature Cool (0) Movement Core (50) Location -3/Research Parts ------- > --- POWER (2) -------- (None) > --- PROPULSION (6) --- (None) > --- UTILITY (9) ------ Advanced Signal Interpreter Experimental System Shield > --- WEAPON (4) ------- (None) > --- INVENTORY (5) ---- Long-range Sensor Array Long-range Terrain Scanner Advanced Terrain Scan Processor ECM Suite Improved Cloaking Device Peak State ------------ > --- POWER ------------ Antimatter-Nuclear Reactor > --- PROPULSION ------- Flying VTOL-Centrium Exoskeleton > --- UTILITY ---------- Armored Scrap Engine Improved Cryofiber Web Experimental Heat Sink Medium Storage Unit Experimental Sensor Array Improved Signal Interpreter Improved Target Analyzer Medium Regenerative Plating > --- WEAPON ----------- Hpw. Directed Quantum Construct/G Hpw. Directed Wave Construct/G Thermal Construct/G Directed Construct/C > --- INVENTORY -------- Advanced Cooling System Advanced Cooling System Improved Hacking Suite Improved Hacking Suite Improved System Shield Improved System Shield Improved Plasma Cutter [Rating: 135] Favorites ----------- Power Constructs Engine Heavy Ion Engine Power Core Light Nuclear Core Reactor Constructs Propulsion Armored Treads Treads Armored Treads Leg Aluminum Leg Flight Unit Constructs Utility Experimental Targeting Computer Device Armored Scrap Engine Storage Large Storage Unit Processor Experimental Targeting Computer Hackware Improved System Shield Protection Light Armor Plating Weapon Constructs Energy Gun Constructs Energy Cannon Beam Cannon Ballistic Gun Assault Rifle Ballistic Cannon Constructs Launcher Advanced EMP Blaster Special Weapon Plasma Cutter Impact Weapon Heavy Mace Piercing Weapon Enhanced Force Lance Special Melee Weapon Datajack Build | -11 -10 -10 -9 -9 -9 -8 -8 -8 -8 -6 -6 -6 -6 -5 -5 -5 -5 -5 -5 -5 -5 -4 -4 -3 ------- Run | Yrd Mat Min Mat Min Exi Min Mat Sto Rec Fac Low Low Dat Pro Fac Was Fac Ext Cet Arc Hub Fac Upp Res Slots Evolved 14 | . . . 2 . . . 2 . . 4 . . . . 2 . . . . . . 2 . 2 Power 1 | . . . . . . . . . . 1 . . . . . . . . . . . . . . Propulsion 4 | . . . . . . . 1 . . 1 . . . . . . . . . . . . . 2 Utility 7 | . . . 1 . . . 1 . . 1 . . . . 2 . . . . . . 2 . . Weapon 2 | . . . 1 . . . . . . 1 . . . . . . . . . . . . . . Parts Attached 114 | . 13 . 18 . 13 2 29 7 4 2 1 . . . . . . 4 2 1 1 12 . 5 Power 8 | . 2 . 2 . . . 2 2 . . . . . . . . . . . . . . . . Engine 6 | . 1 . 2 . . . 1 2 . . . . . . . . . . . . . . . . Core 2 | . 1 . . . . . 1 . . . . . . . . . . . . . . . . . Reactor . | . . . . . . . . . . . . . . . . . . . . . . . . . Propulsion 26 | . 3 . 4 . 5 . 11 1 1 . . . . . . . . . . . . . . 1 Treads 21 | . 2 . 4 . 3 . 11 1 . . . . . . . . . . . . . . . . Leg 4 | . 1 . . . 2 . . . 1 . . . . . . . . . . . . . . . Wheel . | . . . . . . . . . . . . . . . . . . . . . . . . . Hover . | . . . . . . . . . . . . . . . . . . . . . . . . . Flight 1 | . . . . . . . . . . . . . . . . . . . . . . . . 1 Utility 37 | . 3 . 3 . 1 1 5 . 3 1 1 . . . . . . 4 2 1 1 10 . 1 Device 17 | . 1 . 2 . . 1 3 . 2 1 . . . . . . . 1 1 1 1 3 . . Storage 5 | . 2 . . . . . 1 . 1 . . . . . . . . 1 . . . . . . Processor 8 | . . . . . 1 . 1 . . . 1 . . . . . . 2 . . . 3 . . Hackware 5 | . . . . . . . . . . . . . . . . . . . . . . 4 . 1 Protection 2 | . . . 1 . . . . . . . . . . . . . . . 1 . . . . . Artifact . | . . . . . . . . . . . . . . . . . . . . . . . . . Weapon 43 | . 5 . 9 . 7 1 11 4 . 1 . . . . . . . . . . . 2 . 3 Energy Gun 13 | . 5 . . . . . 4 2 . . . . . . . . . . . . . 2 . . Energy Cannon 7 | . . . 6 . . . 1 . . . . . . . . . . . . . . . . . Ballistic Gun 14 | . . . 3 . 5 1 3 1 . . . . . . . . . . . . . . . 1 Ballistic Cannon 1 | . . . . . . . 1 . . . . . . . . . . . . . . . . . Launcher 3 | . . . . . 1 . 1 . . . . . . . . . . . . . . . . 1 Special Weapon 1 | . . . . . . . . 1 . . . . . . . . . . . . . . . . Impact Weapon 1 | . . . . . . . . . . 1 . . . . . . . . . . . . . . Slashing Weapon . | . . . . . . . . . . . . . . . . . . . . . . . . . Piercing Weapon 1 | . . . . . . . . . . . . . . . . . . . . . . . . 1 Special Melee Weapon 2 | . . . . . 1 . 1 . . . . . . . . . . . . . . . . . Unidentified Prototypes 13 | . . . 2 . . . 1 3 2 1 . . . . . . . . 2 . . . . 2 Parts Lost 42 | . . . . . 11 . 1 . . . . . . . . . 1 5 . . 1 13 4 6 Power 3 | . . . . . . . . . . . . . . . . . . . . . . 2 . 1 Propulsion 5 | . . . . . 4 . . . . . . . . . . . . . . . . . . 1 Utility 17 | . . . . . 1 . 1 . . . . . . . . . . 4 . . . 4 3 4 Weapon 17 | . . . . . 6 . . . . . . . . . . . 1 1 . . 1 7 1 . Highest Loss Streak 7 | . . . . . 7 . 1 . . . . . . . . . 1 2 . . 1 4 5 3 To Critical Strikes 7 | . . . . . 7 . . . . . . . . . . . . . . . . . . . Average Backups 10 | . 10 15 14 15 12 11 15 19 17 9 5 5 5 5 3 4 4 5 8 9 9 5 5 4 Power . | . 1 2 1 1 1 2 1 1 1 . . . . . . . . . . . . . . . Propulsion 2 | . 3 1 2 5 4 3 4 7 4 . . . . . . . . . . . . . . . Utility 4 | . 1 2 3 2 2 3 4 4 5 6 4 4 4 4 2 3 4 4 7 8 8 5 5 4 Weapon 3 | . 3 8 6 6 5 2 4 5 5 2 . 1 1 1 1 1 . . . . . . . . Tool/Special . | . . . . . . . . . . . . . . . . . . . . . . . . . Unused Backups 58 | . 9 2 9 . 2 . 6 6 6 . 4 . . . . . 1 . . 4 1 5 . 3 Power 5 | . 2 . 2 . . . . . 1 . . . . . . . . . . . . . . . Propulsion 9 | . 2 1 . . . . 2 2 2 . . . . . . . . . . . . . . . Utility 25 | . 1 . . . 2 . 1 3 2 . 3 . . . . . 1 . . 4 1 4 . 3 Weapon 17 | . 4 1 7 . . . 3 . 1 . 1 . . . . . . . . . . . . . Tool/Special 2 | . . . . . . . . 1 . . . . . . . . . . . . . 1 . . Average Slot Usage (%) 79 | . 99 100 99 100 94 82 99 99 82 61 66 66 66 66 68 73 69 67 64 69 69 57 30 34 Engine 3 | . 7 . 9 11 11 11 6 9 5 . . . . . . 2 . . . . . . . . Core 2 | . 6 14 1 . . . 2 . 3 6 6 6 6 6 5 1 . . . . . . . . Reactor 1 | . . . . . . . . . . . . . . . . 3 5 5 5 5 5 2 . 2 Treads 12 | . 18 28 22 22 19 . 26 27 19 6 6 6 6 6 5 5 3 . . . . . . . Leg 1 | . 9 . . . 1 22 . . . . . . . . . . 1 5 5 5 5 2 . . Device 15 | . 13 14 20 11 6 13 17 18 14 13 13 13 13 13 21 23 23 17 17 18 20 15 5 7 Storage 6 | . 14 14 11 11 11 11 9 9 9 6 . . . . . . . 4 5 5 5 3 . . Processor 7 | . . . . . 4 . 8 9 9 6 12 13 13 13 11 11 11 10 5 5 5 6 10 7 Hackware 1 | . . . . . . . . . . . . . . . . . . . . . . 12 12 10 Energy Gun 10 | . 27 28 . . . . 18 26 18 . . 4 6 6 5 4 . 4 5 5 7 9 . . Energy Cannon 8 | . . . 29 . . . 1 . 2 13 19 13 13 13 11 11 16 15 16 11 8 . . . Ballistic Gun 4 | . . . 3 33 28 24 3 . . 6 6 5 6 6 5 5 2 . . 5 5 . . . Peak Build Rating 135 | . 13 13 24 16 32 48 54 54 59 79 79 82 82 82 93 112 121 121 123 123 126 135 55 86 Average Rating 63 | . 11 12 19 16 16 36 47 53 52 69 78 81 82 81 92 99 114 110 113 122 123 88 41 59 On Entrance 64 | 6 6 12 13 16 16 32 48 54 54 55 79 79 82 82 82 93 112 121 111 123 122 123 55 38 Naked Turns . | . . . . . . . . . . . . . . . . . . . . . . . . . Heaviest Build 75 | 12 31 30 42 38 39 41 62 61 69 55 55 35 33 33 34 43 50 54 72 72 72 75 1 16 Greatest Support 168 | 20 40 40 43 43 60 60 66 66 60 56 56 56 56 56 56 73 138 168 168 168 168 168 3 16 Greatest Overweight (x) 4 | . . . 1 . 1 . . . 4 1 . . . . . . . . . . . . . 3 Average Overweight (x) . | . . . . . . . . . . . . . . . . . . . . . . . . . Largest Inventory Capacity 20 | . 15 15 15 15 15 15 20 20 20 10 10 5 5 5 5 5 5 10 10 10 10 10 5 5 Average Capacity 11 | . 12 15 15 15 15 15 16 20 19 10 5 5 5 5 5 5 5 9 10 10 10 8 5 5 Most Carried 20 | . 15 15 15 15 15 12 20 20 20 10 9 5 5 5 4 5 5 7 10 10 10 10 5 5 Average Carried 10 | . 10 14 14 15 12 11 15 19 17 9 5 5 5 5 3 4 4 5 8 9 9 5 5 4 Final Capacity 20 | 8 15 15 15 15 15 15 20 20 10 10 5 5 5 5 5 5 5 10 10 10 10 5 5 5 Final Carried 20 | 6 15 15 15 15 12 10 20 20 10 10 5 5 5 5 3 5 5 7 10 9 10 5 5 5 Scrap Engine Consumption 151 | . . . . . . . . . 31 21 7 3 . 10 1 15 5 12 11 5 . 26 1 3 Constructs Created 13 | . . . . . . . . . 4 2 . . . . . . 1 1 . . 1 2 . 2 Constructs Modified 41 | . . . . . . . . . 7 2 2 3 . . . 7 3 3 5 . . 9 . . Class Distribution -------------------- 31% | Construct 21% | Gunner 12% | Commander-Construct 9% | Mutant 7% | Scavenger-Gunner 4% | Tank 3% | Hacker-Scout 3% | Scavenger-Mutant Dominant Class ---------------- Mutant | -10/Materials Mutant | -10/Mines Gunner | -9/Materials Tank | -9/Mines Tank | -9/Exiles Mutant | -8/Mines Scavenger-Gunner | -8/Materials Gunner | -8/Storage Gunner | -8/Recycling Construct | -6/Factory Construct | -6/Lower Caves Construct | -6/Lower Caves Construct | -6/Data Miner Construct | -5/Proximity Caves Construct | -5/Factory Construct | -5/Waste Construct | -5/Factory Commander-Construct | -5/Extension Commander-Construct | -5/Cetus Commander-Construct | -5/Archives Commander-Construct | -5/Hub_04(d) Hacker-Scout | -4/Factory Hacker-Mutant | -4/Upper Caves Hacker-Scout | -3/Research Resources | -11 -10 -10 -9 -9 -9 -8 -8 -8 -8 -6 -6 -6 -6 -5 -5 -5 -5 -5 -5 -5 -5 -4 -4 -3 ----------- Run | Yrd Mat Min Mat Min Exi Min Mat Sto Rec Fac Low Low Dat Pro Fac Was Fac Ext Cet Arc Hub Fac Upp Res Matter Collected 3013 | 200 141 . 209 40 720 . 597 105 89 117 72 100 . 48 . 20 40 158 108 55 54 140 . . Remotely . | . . . . . . . . . . . . . . . . . . . . . . . . . Salvage Created 9028 | . 704 147 884 84 137 . 1492 949 539 369 105 353 . 98 . . 165 1403 240 297 207 855 . . Parts 443 | . 58 11 51 5 9 . 74 48 27 20 7 10 . 7 . . 4 50 11 21 5 25 . . Haulers Intercepted 19 | . 2 . 6 . . . 6 4 . . . . . . . . 1 . . . . . . . Recyclers Shooed 7 | . . . 2 . . . . 1 . . . . . . . . . 4 . . . . . . Parts Field Recycled . | . . . . . . . . . . . . . . . . . . . . . . . . . Retrieved Matter . | . . . . . . . . . . . . . . . . . . . . . . . . . Parts Self-Destructed 25 | . . . . . . . . . . . 5 10 . 4 . . . . . . . . 6 . Prevented 10 | . . . . . . . . . . . . 8 . 2 . . . . . . . . . . Kills | -11 -10 -10 -9 -9 -9 -8 -8 -8 -8 -6 -6 -6 -6 -5 -5 -5 -5 -5 -5 -5 -5 -4 -4 -3 ------- Run | Yrd Mat Min Mat Min Exi Min Mat Sto Rec Fac Low Low Dat Pro Fac Was Fac Ext Cet Arc Hub Fac Upp Res Combat Hostiles Destroyed 142 | . 16 3 11 2 7 . 25 11 7 6 4 5 . 3 . . 2 20 2 . 3 15 . . Guns 76 | . 15 3 . 2 2 . 22 10 6 . . . . 2 . . . 3 . . 2 9 . . Cannons 45 | . . . 11 . . . 2 . . 3 4 4 . 1 . . 2 15 1 . 1 1 . . AOE 14 | . 1 . . . 5 . . . . 3 . 1 . . . . . 1 . . . 3 . . Classes Destroyed 25 | . 6 1 2 . 1 . 4 1 2 1 . 2 . 1 . . 1 3 . . . . . . Worker 4 | . 2 . 1 . . . . . . . . . . . . . . . . . . 1 . . Builder 3 | . . . . . . . 2 . 1 . . . . . . . . . . . . . . . Tunneler 1 | . . 1 . . . . . . . . . . . . . . . . . . . . . . Hauler 19 | . 2 . 6 . . . 6 4 . . . . . . . . 1 . . . . . . . Recycler 4 | . 1 . 1 . . . . 1 . . . . . . . . . 1 . . . . . . Minesweeper 1 | . . . . . . . . . . . . 1 . . . . . . . . . . . . Mechanic 1 | . . . . . . . . 1 . . . . . . . . . . . . . . . . Operator 8 | . . . 1 . . . 1 . . 1 . . . . . . . . . 5 . . . . Drone 2 | . . . . . . . . . . . . . . 2 . . . . . . . . . . Watcher 9 | . 2 . 1 . . . 2 2 . . . . . . . . . 1 . . . 1 . . Swarmer 23 | . 6 . 4 . . . 3 . . . 4 . . . . . . . . . . 6 . . Cutter 2 | . . . . . . . 2 . . . . . . . . . . . . . . . . . Saboteur 1 | . . . . . . . . . . . . . . . . . . 1 . . . . . . Grunt 63 | . 10 3 7 2 . . 13 6 . 4 . 4 . . . . 1 7 . . 2 4 . . Brawler 3 | . . . . . . . . . . . . 1 . . . . . 2 . . . . . . Duelist 1 | . . . . . . . 1 . . . . . . . . . . . . . . . . . Sentry 23 | . . . 2 . . . 4 4 3 1 . . . 1 . . . 6 . . . 2 . . Demolisher 2 | . . . . . . . . . . . . . . . . . 1 1 . . . . . . Specialist 1 | . . . . . . . . . . . . . . . . . . 1 . . . . . . Hunter 4 | . . . . . . . 2 1 . . . . . . . . . . . . . 1 . . Programmer 5 | . . . . . . . . . . 1 . . . . . . . 1 . . 1 2 . . Behemoth 1 | . . . . . . . . . . . . . . . . . . 1 . . . . . . Cetus Guard 2 | . . . . . . . . . . . . . . . . . . . 2 . . . . . Scientist 2 | . . . . . . . . . 2 . . . . . . . . . . . . . . . Scrapper 3 | . . . . . . . . . 3 . . . . . . . . . . . . . . . Assembled 6 | . . . . . 6 . . . . . . . . . . . . . . . . . . . Wasp 1 | . . . . . . . . . . . . . . . . . 1 . . . . . . . Thug 2 | . . . . . . . . . . . . . . . . . . . . 2 . . . . Butcher 1 | . . . . . . . . . . . . . . . . . . . . . 1 . . . Best Kill Streak 7 | . 4 2 6 1 6 . 5 5 3 4 3 3 . 1 . . 1 5 2 2 2 7 . . Combat Bots Only 6 | . 3 2 3 1 6 . 5 2 2 4 3 3 . 1 . . 1 5 2 . 2 4 . . Max Kills in Single Turn 4 | . 3 1 2 1 2 . 2 1 1 2 1 2 . 1 . . 2 2 1 1 1 4 . . Gunslinging 1 | . . . . . . . 1 . . . . . . . . . . . . . . . . . Exploded 2 | . 1 . . . 2 . . . . 2 . 1 . . . . . 1 . . . 2 . . Melee . | . . . . . . . . . . . . . . . . . . . . . . . . . Uniques/NPCs Destroyed 3 | . . . . . 1 . . . 1 . . . . . . . . . 1 . . . . . 8R-AWN (-9/Exiles) KN-7UR (-8/Recycling) A7 (-5/Cetus) Combat | -11 -10 -10 -9 -9 -9 -8 -8 -8 -8 -6 -6 -6 -6 -5 -5 -5 -5 -5 -5 -5 -5 -4 -4 -3 -------- Run | Yrd Mat Min Mat Min Exi Min Mat Sto Rec Fac Low Low Dat Pro Fac Was Fac Ext Cet Arc Hub Fac Upp Res Hostile Shots Fired 1132 | . 69 3 40 13 129 10 61 32 43 37 10 10 . 29 . . 9 74 13 3 23 347 49 128 Missed 354 | . 14 2 15 4 27 2 13 13 7 14 1 4 . 14 . . 3 31 3 1 7 114 15 50 Hits 778 | . 55 1 25 9 102 8 48 19 36 23 9 6 . 15 . . 6 43 10 2 16 233 34 78 Melee 9 | . . . . . . . 1 . . . . . . . . . . 4 . . . 4 . . Projectile 769 | . 55 1 25 9 102 8 47 19 36 23 9 6 . 15 . . 6 39 10 2 16 229 34 78 AOE 4 | . . . . . . . . . . . . . . . . . 2 2 . . . . . . Critical Strikes 71 | . . . . . 49 . 2 . . . . . . 1 . . . 4 4 . 2 7 . 2 Damage Taken 14205 | . 568 12 313 118 1820 64 661 382 554 308 176 109 . 257 . 29 321 1053 245 51 424 4439 521 1780 Core 3208 | . 94 . 53 . 295 14 120 . 55 10 40 . . 73 . . 24 169 . . 40 681 229 1311 Absorbed by Shields 439 | . . . . . . . 114 . . . . . . . . . . 193 81 . . . . 51 Regen/Repaired (Parts) 3292 | . . . . . . . . . . 58 56 133 . . . 186 64 179 699 106 8 1803 . . Core Remaining (%) 60 | 100 . 62 . . . 9 . . 68 . . . . 85 . . . . . . 76 . 20 . Volleys Fired 574 | . 50 12 40 10 58 . 62 43 22 15 6 14 . 27 . . 10 43 47 46 13 47 2 7 Largest 4 | . 2 2 3 3 3 . 3 3 3 4 4 4 . 4 . . 4 4 4 4 4 4 1 1 Hottest 309 | . 105 80 204 60 63 . 207 207 179 260 260 260 . 221 . . 252 268 268 268 309 309 30 44 Shots Fired 1473 | . 98 24 120 30 157 . 183 128 65 39 18 37 . 47 . . 34 164 88 51 47 134 2 7 Gun 930 | . 98 24 7 30 150 . 157 128 65 12 6 9 . 34 . . 3 31 15 4 31 124 2 . Cannon 533 | . . . 113 . . . 26 . . 24 12 28 . 13 . . 31 133 73 47 16 10 . 7 Launcher 10 | . . . . . 7 . . . . 3 . . . . . . . . . . . . . . Special . | . . . . . . . . . . . . . . . . . . . . . . . . . Kinetic 361 | . 6 . 7 30 150 . 56 . . 9 3 17 . 7 . . 4 43 15 2 3 9 . . Thermal 1034 | . 78 . 113 . . . 127 128 64 24 12 9 . 33 . . 25 121 73 49 44 125 2 7 Explosive 7 | . . . . . 7 . . . . . . . . . . . . . . . . . . . Electromagnetic 71 | . 14 24 . . . . . . 1 6 3 11 . 7 . . 5 . . . . . . . Robot Hit Streak 30 | . 7 4 8 4 17 . 15 24 26 9 14 9 . 6 . . 6 30 6 5 8 16 1 2 Robot Miss Streak 7 | . 5 4 5 3 5 . 3 2 1 2 2 2 . 4 . . 2 7 4 6 4 5 1 2 Penetration Max 1 | . . . . . . . . . . . . . . . . . . 1 1 . . . . . Secondary Targets 9 | . . . . . . . 3 . 1 . . . . . . . . . . . . 5 . . Max Gunslinging Chain 1 | . . . . . . . 1 . 1 . . . . . . . . . . . . 1 . . Shots Hit Robots 900 | . 57 12 55 15 119 . 127 72 55 24 10 24 . 10 . . 21 100 54 27 24 91 1 2 Core Hits 370 | . 34 5 26 5 26 . 58 28 15 13 6 9 . 4 . . 4 45 20 16 9 45 2 . Critical Kills 2 | . . . . . . . . . . . . . . 1 . . . 1 . . . . . . Critical Parts Destroyed 2 | . . . . . . . . . . . . . . . . . 2 . . . . . . . Critical Strikes 17 | . . 1 . . . . 2 2 6 . . 1 . 1 . . 2 2 . . . . . . Burn 11 | . . . . . . . 2 2 6 . . . . . . . . 1 . . . . . . Meltdown 1 | . . . . . . . . . . . . . . . . . . 1 . . . . . . Destroy 3 | . . . . . . . . . . . . . . 1 . . 2 . . . . . . . Corrupt 2 | . . 1 . . . . . . . . . 1 . . . . . . . . . . . . Melee Attacks 8 | . . . . . 4 . . . . 3 . . . . . . . . . . . . . 1 Impact 3 | . . . . . . . . . . 3 . . . . . . . . . . . . . . Slashing . | . . . . . . . . . . . . . . . . . . . . . . . . . Piercing 1 | . . . . . . . . . . . . . . . . . . . . . . . . 1 Sneak Attacks 4 | . . . . . 4 . . . . . . . . . . . . . . . . . . . Combat Hostiles . | . . . . . . . . . . . . . . . . . . . . . . . . . Follow-up Attacks . | . . . . . . . . . . . . . . . . . . . . . . . . . Damage Inflicted 22417 | . 849 182 1148 192 1882 . 2568 1585 1067 916 234 762 . 275 . . 781 3722 2170 1017 866 2061 64 76 Guns 10720 | . 728 177 49 192 1511 . 2214 1527 970 151 76 106 . 188 . . 96 372 264 93 639 1357 10 . Cannons 9762 | . . . 1082 . . . 349 . . 371 125 565 . 87 . . 685 3149 1906 924 227 233 . 59 Explosions 1633 | . 105 . . . 371 . . . 47 376 33 91 . . . . . 146 . . . 464 . . Melee . | . . . . . . . . . . . . . . . . . . . . . . . . . Ramming 302 | . 16 5 17 . . . 5 58 50 18 . . . . . . . 55 . . . 7 54 17 Kinetic 4686 | . 32 . 49 192 1511 . 854 . . 201 . 318 . 66 . . 119 767 450 . 37 90 . . Thermal 15898 | . 697 . 1082 . . . 1709 1527 995 449 203 216 . 178 . . 586 2797 1720 1017 829 1824 10 59 Explosive 371 | . . . . . 371 . . . . . . . . . . . . . . . . . . . Electromagnetic 1160 | . 104 177 . . . . . . 22 248 31 228 . 31 . . 76 103 . . . 140 . . Impact . | . . . . . . . . . . . . . . . . . . . . . . . . . Slashing . | . . . . . . . . . . . . . . . . . . . . . . . . . Piercing . | . . . . . . . . . . . . . . . . . . . . . . . . . Highest Corruption 10 | . . . . . . . . 1 1 . . . . . . . . 10 10 10 5 3 5 2 Average Corruption 3 | . . . . . . . . 1 1 . . . . . . . . 4 10 9 3 2 4 1 Corruption Purged 7 | . . . . . . . . . . . . . . . . . . . . 7 . . . . Corruption Blocked . | . . . . . . . . . . . . . . . . . . . . . . . . . Effects 89 | . . . . . . . . 4 13 . . . . . . . . 15 14 20 6 13 . 4 Message Errors 16 | . . . . . . . . . 3 . . . . . . . . 3 3 2 2 2 . 1 Matter Fused 15 | . . . . . . . . . 2 . . . . . . . . 2 2 5 1 3 . . Heat Flow Errors 17 | . . . . . . . . 1 1 . . . . . . . . 2 3 4 . 4 . 2 Energy Discharges 12 | . . . . . . . . 2 4 . . . . . . . . 3 . 3 . . . . Parts Rejected 2 | . . . . . . . . . . . . . . . . . . 1 1 . . . . . Parts Fused 1 | . . . . . . . . . . . . . . . . . . . . 1 . . . . Data Loss (minor) 15 | . . . . . . . . . 2 . . . . . . . . 2 3 2 2 3 . 1 Data Loss (major) 4 | . . . . . . . . . . . . . . . . . . . 1 2 1 . . . Misfires 1 | . . . . . . . . . 1 . . . . . . . . . . . . . . . Alerts 1 | . . . . . . . . . . . . . . . . . . 1 . . . . . . Misdirections 1 | . . . . . . . . . . . . . . . . . . . 1 . . . . . Weapon Failures 4 | . . . . . . . . 1 . . . . . . . . . 1 . 1 . 1 . . Overload Shots . | . . . . . . . . . . . . . . . . . . . . . . . . . Overflow Damage 233 | . . . 5 . . . . . 13 . . 36 . . . . 10 77 13 49 . 30 . . Projectiles 190 | . . . 5 . . . . . . . . 36 . . . . 10 77 13 49 . . . . Explosions 43 | . . . . . . . . . 13 . . . . . . . . . . . . 30 . . Melee . | . . . . . . . . . . . . . . . . . . . . . . . . . Knockbacks 22 | . . . . . . . 3 . . 2 . . . . . . . 11 4 . 1 . . 1 Impact 2 | . . . . . . . . . . . . . . . . . . 1 . . . . . 1 Kinetic 16 | . . . . . . . 3 . . 2 . . . . . . . 7 3 . 1 . . . Secondary 4 | . . . . . . . . . . . . . . . . . . 3 1 . . . . . Self-Inflicted Damage 328 | . . . . . . . . . 37 40 48 . . . . . . 24 . . . 147 24 8 Shots 7 | . . . . . . . . . 1 1 1 . . . . . . 1 . . . 3 . . Rammed 44 | . 3 1 5 . . . 1 6 5 1 . . . . . . . . . . . . 20 2 Targets Rammed 60 | . 5 2 5 . . . 1 8 5 1 . . . . . . . 8 . . . 3 20 2 Kicked 12 | . 1 . . . . . . . . . . . . . . . . 8 . . . 3 . . Crushed 4 | . 1 1 . . . . . 2 . . . . . . . . . . . . . . . . Highest Temperature 547 | . 84 . 108 . 24 . 261 321 547 189 354 257 . 276 . . . 204 42 59 35 165 . 185 Average Temperature 69 | . 21 . 31 . 7 . 81 83 141 63 161 105 . 61 . . . 75 42 36 21 50 . 76 Received Heat Transfer 2068 | . 180 6 84 72 . . 290 117 258 108 . 54 . 36 . . 36 238 4 . 18 453 . 114 Effects 2 | . . . . . . . . . 2 . . . . . . . . . . . . . . . Interference 1 | . . . . . . . . . 1 . . . . . . . . . . . . . . . Matter Decay 1 | . . . . . . . . . 1 . . . . . . . . . . . . . . . Siege Activations . | . . . . . . . . . . . . . . . . . . . . . . . . . Martial Activations . | . . . . . . . . . . . . . . . . . . . . . . . . . Shielding Activations . | . . . . . . . . . . . . . . . . . . . . . . . . . Robots Disrupted . | . . . . . . . . . . . . . . . . . . . . . . . . . Combat Hostiles . | . . . . . . . . . . . . . . . . . . . . . . . . . Robots Corrupted 1 | . . . . . . . . . . . . 1 . . . . . . . . . . . . Combat Hostiles . | . . . . . . . . . . . . . . . . . . . . . . . . . Parts Fried 4 | . . . . . . . . . . . . 2 . . . . . . 1 . . 1 . . Impact Corruptions . | . . . . . . . . . . . . . . . . . . . . . . . . . Robots Melted 7 | . . . . . . . 1 1 1 . . . . . . . . 1 1 . . 2 . . Combat Hostiles 7 | . . . . . . . 1 1 1 . . . . . . . . 1 1 . . 2 . . Parts Melted 52 | . 3 . 1 . . . 7 3 9 . . . . . . . . 12 . 1 . 16 . . Heat Transferred 23630 | . 1503 . 2109 . . . 3293 3034 2225 100 50 50 . 200 . . 694 3611 1651 1147 740 3112 37 74 Parts Sabotaged . | . . . . . . . . . . . . . . . . . . . . . . . . . Parts Stolen . | . . . . . . . . . . . . . . . . . . . . . . . . . Parts Stripped . | . . . . . . . . . . . . . . . . . . . . . . . . . Power Chain Reactions 7 | . 1 . . . . . . . 1 . 1 1 . . . . . 2 . . . 1 . . Alert | -11 -10 -10 -9 -9 -9 -8 -8 -8 -8 -6 -6 -6 -6 -5 -5 -5 -5 -5 -5 -5 -5 -4 -4 -3 ------- Run | Yrd Mat Min Mat Min Exi Min Mat Sto Rec Fac Low Low Dat Pro Fac Was Fac Ext Cet Arc Hub Fac Upp Res Maximum Alert Level 4 | . . . 2 1 . . 1 . . 2 . . . . 2 . 4 4 3 2 3 2 . 1 Low Security (%) 58 | . 100 100 51 61 . 100 85 100 100 . . . . . . 100 40 . . . 5 . . 78 Level 1 14 | . . . 15 38 . . 14 . . 86 . . . . . . 9 . . 24 57 10 . 21 Level 2 15 | . . . 33 . . . . . . 13 . . . . 100 . 23 10 . 75 35 89 . . Level 3 7 | . . . . . . . . . . . . . . . . . 7 48 100 . 2 . . . Level 4 4 | . . . . . . . . . . . . . . . . . 19 41 . . . . . . Level 5 . | . . . . . . . . . . . . . . . . . . . . . . . . . High Security . | . . . . . . . . . . . . . . . . . . . . . . . . . Max Security . | . . . . . . . . . . . . . . . . . . . . . . . . . Peak Influence 1545 | . 123 93 623 225 . . 340 168 91 450 . . . . 468 160 1265 1545 1008 520 839 658 . 246 Initial 843 | . . 6 29 225 . . . 130 56 450 . . . . 468 160 4 604 843 361 117 382 . 244 Average 292 | . 50 13 286 192 . . 105 108 16 347 . . . . 463 83 527 1013 929 430 392 570 . 153 Influence Increases 10786 | . 473 130 1018 80 . . 800 490 266 677 135 125 . 60 450 16 1495 1643 383 273 1140 807 34 291 Destroy 0b10 Robot/C 4080 | . 320 100 560 40 . . 500 220 60 120 80 100 . 20 . . 400 680 160 80 300 320 20 . Destroy 0b10 Robot/NC 340 | . 35 15 55 . . . 55 40 5 5 . 5 . 10 . . 35 20 10 25 15 10 . . Destroy Leader 800 | . 68 . 136 10 . . 146 72 . 20 10 20 . . . . 96 74 . . 66 72 10 . Allied During Kill 1951 | . . 15 126 . . . . . . . . . . . . . 531 763 170 105 235 2 4 . Successful Hack 197 | . 18 . 18 . . . 16 21 15 . . . . . . . 5 28 . . . 42 . 34 Select Force Hacks 240 | . . . 60 . . . . . 180 . . . . . . . . . . . . . . . Disable Machine 675 | . 15 . 45 . . . 60 105 . 60 . . . . . . 60 30 15 45 120 90 . 30 Anti-Garrison Action 350 | . . . . . . . . . . . . . . . . . 150 . . . 200 . . . Destroy Structure 653 | . 2 . 3 . . . 8 2 6 22 . . . . . 16 218 48 28 18 204 76 . 2 Advance Influence 900 | . . . . . . . . . . 450 . . . . 450 . . . . . . . . . Partial Spotted 45 | . . . 15 . . . . . . . . . . . . . . . . . . . . 30 Lose Combat Pursuer 555 | . 15 . . 30 . . 15 30 . . 45 . . 30 . . . . . . . 195 . 195 Influence Decreases 10597 | . 455 71 517 473 185 . 491 653 412 380 432 125 . 30 22 468 266 1371 986 841 695 953 306 465 Entered New Map 4101 | . . 12 48 353 185 . . 179 90 . 111 . . . 12 298 2 631 664 543 219 399 236 119 Time Decay 5486 | . 455 59 429 120 . . 481 474 322 380 321 125 . 30 10 170 154 490 222 278 246 404 30 286 Lost Part 310 | . . . . . . . 10 . . . . . . . . . 10 50 . . 10 130 40 60 Lost Ally 700 | . . . 40 . . . . . . . . . . . . . 100 200 100 20 220 20 . . Squads Dispatched 42 | . 2 . 3 . . . 4 3 . 3 . . . . . . 10 2 . . 6 7 . 2 Investigation 10 | . 2 . 2 . . . 1 1 . 1 . . . . . . 1 . . . 2 . . . Extermination 6 | . . . . . . . . . . 1 . . . . . . . . . . 1 2 . 2 Reinforcement 11 | . . . 1 . . . 3 2 . 1 . . . . . . 1 . . . 3 . . . Assault 9 | . . . . . . . . . . . . . . . . . 5 2 . . . 2 . . Garrison 6 | . . . . . . . . . . . . . . . . . 3 . . . . 3 . . Intercept . | . . . . . . . . . . . . . . . . . . . . . . . . . Searches Triggered . | . . . . . . . . . . . . . . . . . . . . . . . . . Data Miner Redirects 2 | . . . . . . . . . . . . . . . . . . . . . . 2 . . Construction Impeded . | . . . . . . . . . . . . . . . . . . . . . . . . . Haulers Reinforced 1 | . . . . . . . . . . . . . . . . . 1 . . . . . . . Active Scanning Responses . | . . . . . . . . . . . . . . . . . . . . . . . . . Cargo Convoy Interrupts . | . . . . . . . . . . . . . . . . . . . . . . . . . Stealth | -11 -10 -10 -9 -9 -9 -8 -8 -8 -8 -6 -6 -6 -6 -5 -5 -5 -5 -5 -5 -5 -5 -4 -4 -3 --------- Run | Yrd Mat Min Mat Min Exi Min Mat Sto Rec Fac Low Low Dat Pro Fac Was Fac Ext Cet Arc Hub Fac Upp Res Distress Signals 20 | . . . 3 . . . 4 2 . . . . . . . . 1 4 2 . . 3 . 1 Communications Jammed . | . . . . . . . . . . . . . . . . . . . . . . . . . Distress Signals . | . . . . . . . . . . . . . . . . . . . . . . . . . Times Spotted 363 | . 22 5 29 4 7 4 41 21 8 13 7 4 . 13 . . 20 36 10 41 13 37 5 23 Peak Tracking Total 10 | . 3 2 4 3 9 4 5 4 3 4 4 3 . 10 . . 10 7 5 2 4 7 5 10 Tactical Retreats 18 | . 1 . . 1 . . 1 1 . . 1 . . 1 . . . . . . . 7 . 5 Traps | -11 -10 -10 -9 -9 -9 -8 -8 -8 -8 -6 -6 -6 -6 -5 -5 -5 -5 -5 -5 -5 -5 -4 -4 -3 ------- Run | Yrd Mat Min Mat Min Exi Min Mat Sto Rec Fac Low Low Dat Pro Fac Was Fac Ext Cet Arc Hub Fac Upp Res Traps Triggered 15 | . 2 . . . . . 1 5 . 1 . . . . 1 . 1 1 . . . 2 . 1 Indirectly . | . . . . . . . . . . . . . . . . . . . . . . . . . Trap Hack Attempts 61 | . . . . . . . 61 . . . . . . . . . . . . . . . . . Triggered . | . . . . . . . . . . . . . . . . . . . . . . . . . Disarmed 2 | . . . . . . . 2 . . . . . . . . . . . . . . . . . Reprogrammed . | . . . . . . . . . . . . . . . . . . . . . . . . . Reused 2 | . . . . . . . . . . . . 2 . . . . . . . . . . . . Traps Extracted . | . . . . . . . . . . . . . . . . . . . . . . . . . Installed 11 | . . . . . . . . . . . . 11 . . . . . . . . . . . . Triggered 2 | . . . . . . . . . . . . 2 . . . . . . . . . . . . Machines | -11 -10 -10 -9 -9 -9 -8 -8 -8 -8 -6 -6 -6 -6 -5 -5 -5 -5 -5 -5 -5 -5 -4 -4 -3 ---------- Run | Yrd Mat Min Mat Min Exi Min Mat Sto Rec Fac Low Low Dat Pro Fac Was Fac Ext Cet Arc Hub Fac Upp Res Machines Disabled 54 | . 1 . 3 . 4 . 4 7 . 4 . . . . . . 5 5 2 3 8 6 . 2 Max in Single Turn 4 | . 1 . 1 . 1 . 1 1 . 3 . . . . . . 1 1 1 1 1 4 . 1 Garrison Access 5 | . . . . . . . . . . 1 . . . . . . 1 . . . 1 1 . 1 Network Hub 1 | . . . . . . . . . . . . . . . . . . . . . 1 . . . Machines Repaired . | . . . . . . . . . . . . . . . . . . . . . . . . . Machines Dismantled 1 | . . . . . . . . 1 . . . . . . . . . . . . . . . . Machines Sabotaged . | . . . . . . . . . . . . . . . . . . . . . . . . . Overloaded Fab Kills . | . . . . . . . . . . . . . . . . . . . . . . . . . Hacking | -11 -10 -10 -9 -9 -9 -8 -8 -8 -8 -6 -6 -6 -6 -5 -5 -5 -5 -5 -5 -5 -5 -4 -4 -3 --------- Run | Yrd Mat Min Mat Min Exi Min Mat Sto Rec Fac Low Low Dat Pro Fac Was Fac Ext Cet Arc Hub Fac Upp Res Machines Accessed 80 | . 8 . 5 . 1 . 8 4 12 6 1 . 4 1 . . 4 7 . . 4 11 . 4 Terminals 55 | . 8 . 2 . . . 8 4 5 4 . . . 1 . . 3 7 . . 3 8 . 2 Fabricators 3 | . . . . . . . . . . . . . . . . . 1 . . . . 1 . 1 Repair Stations 2 | . . . 1 . . . . . . . . . . . . . . . . . . 1 . . Recycling Units 8 | . . . 2 . . . . . 6 . . . . . . . . . . . . . . . Scanalyzers . | . . . . . . . . . . . . . . . . . . . . . . . . . Garrison Access 5 | . . . . . . . . . . 2 . . . . . . . . . . 1 1 . 1 Total Hacks 233 | . 20 . 18 . 1 . 24 6 30 10 1 . 28 5 . . 9 14 . . 9 47 . 11 Successful 145 | . 14 . 12 . 1 . 19 3 20 3 1 . 28 5 . . 3 7 . . 1 22 . 6 Failed 88 | . 6 . 6 . . . 5 3 10 7 . . . . . . 6 7 . . 8 25 . 5 Catastrophic 19 | . . . 1 . . . . . 1 3 . . . . . . 2 3 . . 2 4 . 3 Database Lockouts . | . . . . . . . . . . . . . . . . . . . . . . . . . Manual 124 | . 14 . 13 . . . 13 . 26 7 . . . . . . 1 12 . . 7 25 . 6 Terminals 173 | . 20 . 14 . . . 24 6 21 8 . . . 5 . . 6 14 . . 7 42 . 6 Fabricators 9 | . . . . . . . . . . . . . . . . . 3 . . . . 3 . 3 Repair Stations 3 | . . . 2 . . . . . . . . . . . . . . . . . . 1 . . Recycling Units 9 | . . . 2 . . . . . 7 . . . . . . . . . . . . . . . Scanalyzers . | . . . . . . . . . . . . . . . . . . . . . . . . . Garrison Access 7 | . . . . . . . . . . 2 . . . . . . . . . . 2 1 . 2 Terminal Hacks 71 | . 5 . 5 . 1 . 7 3 5 . 1 . 28 5 . . 1 . . . . 10 . . Record 17 | . . . . . 1 . . . . . . . 11 5 . . . . . . . . . . Part Schematic 10 | . . . . . . . . . 1 . . . 8 . . . . . . . . 1 . . Robot Schematic 8 | . . . . . . . . . 2 . . . 6 . . . . . . . . . . . Robot Analysis 5 | . 3 . 1 . . . 1 . . . . . . . . . . . . . . . . . Prototype ID Bank 9 | . . . 2 . . . 2 . . . . . 3 . . . . . . . . 2 . . Open Door 5 | . . . . . . . . 3 . . 1 . . . . . 1 . . . . . . . Level Access Points 1 | . . . . . . . . . . . . . . . . . . . . . . 1 . . Branch Access Points 2 | . . . . . . . 1 . . . . . . . . . . . . . . 1 . . Terminal Index 1 | . . . . . . . 1 . . . . . . . . . . . . . . . . . Garrison Index 1 | . . . . . . . . . . . . . . . . . . . . . . 1 . . Alert Level 2 | . . . . . . . . . . . . . . . . . . . . . . 2 . . Locate Traps 2 | . 1 . . . . . 1 . . . . . . . . . . . . . . . . . Hauler Manifests 2 | . 1 . 1 . . . . . . . . . . . . . . . . . . . . . Registered Components 1 | . . . . . . . 1 . . . . . . . . . . . . . . . . . Registered Prototypes 1 | . . . . . . . . . . . . . . . . . . . . . . 1 . . Zone Layout 2 | . . . 1 . . . . . . . . . . . . . . . . . . 1 . . Release Object 2 | . . . . . . . . . 2 . . . . . . . . . . . . . . . Fabricator Hacks 5 | . . . . . . . . . . . . . . . . . 2 . . . . 2 . 1 Network Status 2 | . . . . . . . . . . . . . . . . . 1 . . . . 1 . . Load Schematic 1 | . . . . . . . . . . . . . . . . . . . . . . 1 . . Build 2 | . . . . . . . . . . . . . . . . . 1 . . . . . . 1 Repair Station Hacks 2 | . . . 1 . . . . . . . . . . . . . . . . . . 1 . . Scan Component 1 | . . . 1 . . . . . . . . . . . . . . . . . . . . . Refit 1 | . . . . . . . . . . . . . . . . . . . . . . 1 . . Recycling Unit Hacks . | . . . . . . . . . . . . . . . . . . . . . . . . . Scanalyzer . | . . . . . . . . . . . . . . . . . . . . . . . . . Garrison Access Hacks 3 | . . . . . . . . . . 1 . . . . . . . . . . . 1 . 1 Seal Access 3 | . . . . . . . . . . 1 . . . . . . . . . . . 1 . 1 Unauthorized Hacks 63 | . 9 . 6 . . . 12 . 14 2 . . . . . . . 7 . . 1 8 . 4 Terminals 54 | . 9 . 4 . . . 12 . 8 2 . . . . . . . 7 . . . 8 . 4 Botnet 24 | . 4 . 2 . . . 6 . 4 1 . . . . . . . 2 . . . 3 . 2 Skim 30 | . 5 . 2 . . . 6 . 4 1 . . . . . . . 5 . . . 5 . 2 Fabricators . | . . . . . . . . . . . . . . . . . . . . . . . . . Repair Stations . | . . . . . . . . . . . . . . . . . . . . . . . . . Recycling Units 8 | . . . 2 . . . . . 6 . . . . . . . . . . . . . . . Tunnel 8 | . . . 2 . . . . . 6 . . . . . . . . . . . . . . . Scanalyzers . | . . . . . . . . . . . . . . . . . . . . . . . . . Garrison Access 1 | . . . . . . . . . . . . . . . . . . . . . 1 . . . Jam 1 | . . . . . . . . . . . . . . . . . . . . . 1 . . . Data Cores Recovered 2 | . . . . . . . 1 . . 1 . . . . . . . . . . . . . . Used . | . . . . . . . . . . . . . . . . . . . . . . . . . Hacking Detections 53 | . 8 . 3 . . . 5 3 5 5 . . . 1 . . 4 5 . . 4 7 . 3 Full Trace Events 4 | . . . . . . . . . 3 . . . . . . . 1 . . . . . . . Feedback Events . | . . . . . . . . . . . . . . . . . . . . . . . . . Feedback Blocked . | . . . . . . . . . . . . . . . . . . . . . . . . . Robot Schematics Acquired 8 | . . . . . . . . . 2 . . . 6 . . . . . . . . . . . Robots Built . | . . . . . . . . . . . . . . . . . . . . . . . . . Authchips . | . . . . . . . . . . . . . . . . . . . . . . . . . Time . | . . . . . . . . . . . . . . . . . . . . . . . . . Total Robot Build Rating . | . . . . . . . . . . . . . . . . . . . . . . . . . Part Schematics Acquired 10 | . . . . . . . . . 1 . . . 8 . . . . . . . . 1 . . Parts Built 4 | . . . . . . . . . . . . . . . . . 2 . . . . . . 2 Authchips . | . . . . . . . . . . . . . . . . . . . . . . . . . Time 186 | . . . . . . . . . . . . . . . . . 117 . . . . . . 69 Total Part Build Rating 32 | . . . . . . . . . . . . . . . . . 14 . . . . . . 18 Parts Repaired . | . . . . . . . . . . . . . . . . . . . . . . . . . Time . | . . . . . . . . . . . . . . . . . . . . . . . . . Parts Recycled . | . . . . . . . . . . . . . . . . . . . . . . . . . Recycled Matter . | . . . . . . . . . . . . . . . . . . . . . . . . . Retrieved Matter . | . . . . . . . . . . . . . . . . . . . . . . . . . Retrieved Components . | . . . . . . . . . . . . . . . . . . . . . . . . . Parts Scanalyzed . | . . . . . . . . . . . . . . . . . . . . . . . . . Part Schematics Acquired . | . . . . . . . . . . . . . . . . . . . . . . . . . Parts Damaged . | . . . . . . . . . . . . . . . . . . . . . . . . . Bothacking | -11 -10 -10 -9 -9 -9 -8 -8 -8 -8 -6 -6 -6 -6 -5 -5 -5 -5 -5 -5 -5 -5 -4 -4 -3 ------------ Run | Yrd Mat Min Mat Min Exi Min Mat Sto Rec Fac Low Low Dat Pro Fac Was Fac Ext Cet Arc Hub Fac Upp Res Used RIF Installer . | . . . . . . . . . . . . . . . . . . . . . . . . . Robots Hacked 4 | . . . . . 4 . . . . . . . . . . . . . . . . . . . Non-combat 3 | . . . . . 3 . . . . . . . . . . . . . . . . . . . Combat 1 | . . . . . 1 . . . . . . . . . . . . . . . . . . . Robot Hacks Applied 4 | . . . . . 4 . . . . . . . . . . . . . . . . . . . parse_system 4 | . . . . . 4 . . . . . . . . . . . . . . . . . . . Relay Couplers Released . | . . . . . . . . . . . . . . . . . . . . . . . . . Fabnet Peak Effective % . | . . . . . . . . . . . . . . . . . . . . . . . . . Robots Rewired 11 | . . . . . . . . . . . . . . . . . . 11 . . . . . . Allies Hacked 6 | . . . . . . . . . . . . . . . . . . 2 . . 4 . . . Hacks Repelled . | . . . . . . . . . . . . . . . . . . . . . . . . . Allies | -11 -10 -10 -9 -9 -9 -8 -8 -8 -8 -6 -6 -6 -6 -5 -5 -5 -5 -5 -5 -5 -5 -4 -4 -3 -------- Run | Yrd Mat Min Mat Min Exi Min Mat Sto Rec Fac Low Low Dat Pro Fac Was Fac Ext Cet Arc Hub Fac Upp Res Total Allies 49 | . . 4 . . . . . . . . . . . . . 20 . 24 . . . . 1 . Largest Group 31 | . . 4 4 . . . . . . . . . . . . 20 20 31 25 18 15 1 1 . Highest-Rated Group 1105 | . . 71 71 . . . . . . . . . . . . 778 778 1105 936 585 494 46 127 . Highest-Rated Ally 159 | . . 31 31 . . . . . . . . . . . . 50 50 159 159 46 46 46 127 . Total Orders 1 | . . . . . . . . . . . . . . . . . . . . . 1 . . . EXPLORE 1 | . . . . . . . . . . . . . . . . . . . . . 1 . . . Ally Attacks 543 | . . 11 69 . . . . . . . . . . . . 3 95 151 73 28 108 4 1 . Total Damage 12711 | . . 124 755 . . . . . . . . . . . . 255 3879 3400 1366 419 2387 38 88 . Kills 95 | . . 4 18 . . . . . . . . . . . . 1 24 17 9 4 16 1 1 . Allies Corrupted 3 | . . . . . . . . . . . . . . . . . . 1 . . 2 . . . Allies Melted 1 | . . . . . . . . . 1 . . . . . . . . . . . . . . . Intel | -11 -10 -10 -9 -9 -9 -8 -8 -8 -8 -6 -6 -6 -6 -5 -5 -5 -5 -5 -5 -5 -5 -4 -4 -3 ------- Run | Yrd Mat Min Mat Min Exi Min Mat Sto Rec Fac Low Low Dat Pro Fac Was Fac Ext Cet Arc Hub Fac Upp Res Active Infowar (turns) 5735 | . . . . . . . . . . 540 880 1020 96 940 38 355 322 85 . . 216 641 63 539 Sensors 5667 | . . . . . . . . . . 540 880 1020 96 940 38 355 322 85 . . 216 634 2 539 Machine Analysis 651 | . . . . . . . . . . . . . . . . . . . . . . 239 63 349 ECM 1 | . . . . . . . . . . . . . . . . . . . . . . 1 . . Robot Analysis Total 5 | . 3 . 1 . . . 1 . . . . . . . . . . . . . . . . . Derelict Logs Recovered 7 | . . 1 . 1 . . . . . . 2 1 . 2 . . . . . . . . . . Drone Launches 2 | . . . . . . . . . . . . . . . . . . . . . 2 . . . Drone Recoveries . | . . . . . . . . . . . . . . . . . . . . . . . . . Exploration | -11 -10 -10 -9 -9 -9 -8 -8 -8 -8 -6 -6 -6 -6 -5 -5 -5 -5 -5 -5 -5 -5 -4 -4 -3 ------------- Run | Yrd Mat Min Mat Min Exi Min Mat Sto Rec Fac Low Low Dat Pro Fac Was Fac Ext Cet Arc Hub Fac Upp Res Turns Passed 18240 | . 1210 629 1132 249 866 29 2039 1204 1754 883 897 1062 96 950 38 355 322 1281 463 610 520 964 63 624 Spaces Moved 11044 | 1 630 367 561 136 385 23 937 613 807 550 715 835 81 731 31 248 238 667 220 189 247 864 33 935 Core 966 | . . . . . . . . . . . . . . . . . . . . . . 602 33 331 Treads 7508 | . 399 367 561 136 352 . 937 613 807 550 715 835 81 731 31 248 145 . . . . . . . Legs 1923 | 1 231 . . . 33 23 . . . . . . . . . . 93 667 220 189 247 219 . . Wheels . | . . . . . . . . . . . . . . . . . . . . . . . . . Hover . | . . . . . . . . . . . . . . . . . . . . . . . . . Flight 647 | . . . . . . . . . . . . . . . . . . . . . . 43 . 604 Fastest Speed 45 | 120 120 160 160 160 120 120 145 145 120 120 120 120 120 120 120 120 107 107 134 189 189 50 50 45 Average Speed 133 | 120 145 160 165 160 161 120 161 165 185 145 120 120 120 120 120 120 114 130 148 189 189 80 50 46 Slowest Speed 420 | 120 160 160 240 160 240 120 170 170 420 195 120 120 120 120 120 120 120 134 189 189 189 189 50 200 Overloaded Moves . | . . . . . . . . . . . . . . . . . . . . . . . . . Propulsion Burnouts . | . . . . . . . . . . . . . . . . . . . . . . . . . Robots Hopped 5 | . . . . . . . . . . . . . . . . . . . . . . 1 . 4 Potential Cave-ins 2 | . . . . . . . . . 2 . . . . . . . . . . . . . . . Cave-ins Triggered . | . . . . . . . . . . . . . . . . . . . . . . . . . Exploration Rate (%) 54 | 2 98 96 51 52 64 7 70 72 98 19 80 77 69 78 2 96 10 85 67 75 34 27 4 22 Regions Visited 24 Branch Regions 15 Pre-discovered Areas 19 | . 3 1 2 1 1 . . . 6 . . . 1 . . . . 4 . . . . . . Known Exits Taken 17 | . 1 1 1 1 . 1 1 1 1 1 1 1 1 1 . . 1 . . . 1 1 1 . Unknown Exits Taken 5 | 1 . . . . 1 . . . . . . . . . . . . 1 1 1 . . . . Scrap Searched 9 | . . 1 . . . . . . . . 2 3 . 3 . . . . . . . . . . Spaces Dug 15 | . . . . . . . . . . 3 . . . 9 . . . 2 . . . . . 1 Terrain Destroyed 218 | . 2 . . . 15 . 4 . 5 35 11 11 . 22 . . 6 30 12 9 11 44 . 1 Melee 4 | . . . . . . . . . . 3 . . . . . . . . . . . . . 1 Projectile 115 | . . . . . . . 4 . 1 3 4 6 . 22 . . 6 30 12 9 11 7 . . AOE 99 | . 2 . . . 15 . . . 4 29 7 5 . . . . . . . . . 37 . . Terrain Rammed . | . . . . . . . . . . . . . . . . . . . . . . . . . Walls Destroyed . | . . . . . . . . . . . . . . . . . . . . . . . . . Machines Disabled . | . . . . . . . . . . . . . . . . . . . . . . . . . Actions | -11 -10 -10 -9 -9 -9 -8 -8 -8 -8 -6 -6 -6 -6 -5 -5 -5 -5 -5 -5 -5 -5 -4 -4 -3 --------- Run | Yrd Mat Min Mat Min Exi Min Mat Sto Rec Fac Low Low Dat Pro Fac Was Fac Ext Cet Arc Hub Fac Upp Res Total 13514 | . 833 388 681 145 514 24 1364 721 1041 597 742 865 80 765 33 308 265 974 289 396 271 1034 76 1108 Wait 1200 | . 99 . 7 . 38 . 209 15 171 15 8 . . 6 . 53 14 147 17 150 5 78 22 146 Move 11011 | . 629 366 560 135 384 22 936 612 806 549 714 834 80 730 31 247 237 666 219 188 246 861 32 927 Hop 5 | . . . . . . . . . . . . . . . . . . . . . . 1 . 4 Pick Up 112 | . 15 4 19 . 8 . 26 9 4 3 2 . . . . 3 2 4 2 4 1 6 . . Fast Attach 47 | . 4 . 7 . 2 . 9 4 3 . . . . . . . . 2 3 1 1 6 . 5 Attach 48 | . 4 . 4 . 11 2 7 . . 2 1 . . . 2 . . 2 . 1 . 11 . 1 Detach 41 | . 7 . 3 . 3 . 6 . 3 1 . . . . . 1 . . 1 1 1 10 . 4 Swap 67 | . 6 . 9 . 3 . 18 7 2 6 4 6 . 2 . . . 1 . . 1 2 . . Drop 149 | . 14 4 27 . 3 . 29 14 25 2 7 . . . . 4 2 . . 5 1 9 . 3 Fire 574 | . 50 12 40 10 58 . 62 43 22 15 6 14 . 27 . . 10 43 47 46 13 47 2 7 Melee 8 | . . . . . 4 . . . . 3 . . . . . . . . . . . . . 1 Ram 22 | . . . . . . . . . . . . . . . . . . . . . . . 20 2 Kick 12 | . 1 . . . . . . . . . . . . . . . . 8 . . . 3 . . Crush 26 | . 4 2 5 . . . 1 8 5 1 . . . . . . . . . . . . . . Escape Stasis 8 | . . . . . . . . . . . . . . . . . . . . . . . . 8 Rewire 103 | . . . . . . . . . . . . . . . . . . 101 . . 2 . . . Trap 72 | . . . . . . . 61 . . . . 11 . . . . . . . . . . . . Miscellaneous 9 | . . . . . . . . 9 . . . . . . . . . . . . . . . . Route ------- -11/Scrapyard -10/Materials (discovered 6 exits: *Mat x3 / *Min x2 / Sub) -10/Mines (discovered 3 exits: *Mat x2 / *Sub) -9/Materials (discovered 4 exits: Mat x2 / *Min x2) -9/Mines (discovered 2 exits: *Mat / *Exi) -9/Exiles -8/Mines -8/Materials (discovered 4 exits: *Fac x3 / *Sto) -8/Storage (discovered 2 exits: *Fac / *Rec) -8/Recycling -6/Factory (discovered 4 exits: *Fac x2 / *Low x2) -6/Lower Caves -6/Lower Caves -6/Data Miner -5/Proximity Caves -5/Factory (discovered 3 exits: Fac x2 / Upp) -5/Waste -5/Factory (discovered 2 exits: *Fac / *Ext) -5/Extension (discovered 2 exits: *Fac / *Cet) -5/Cetus (discovered 2 exits: *Fac / [*Arc]) -5/Archives (discovered 3 exits: *Fac / *Hub x2) -5/Hub_04(d) -4/Factory (discovered 7 exits: Res x4 / *Upp x2 / Arm) -4/Upper Caves -3/Research History --------- Turn | Location | Event 1 | -11/Scrapyard | Discovered new exit (range 0) 1 | -11/Scrapyard | Entered Materials 260 | -10/Materials | Discovered new exit (range 11) 537 | -10/Materials | Discovered new exit (range 16) 580 | -10/Materials | Build established: Scavenger-Mutant 729 | -10/Materials | Discovered new exit (range 16) 932 | -10/Materials | Discovered new exit (range 16) 990 | -10/Materials | Build established: Mutant 1015 | -10/Materials | Discovered new exit (range 12) 1054 | -10/Materials | Learned Storage stockpile data 1131 | -10/Materials | Identified exit to Materials 1131 | -10/Materials | Identified exit to Mines 1131 | -10/Materials | Identified exit to Subcaves 1135 | -10/Materials | Learned location of 2 exits from Materials 1137 | -10/Materials | Learned 2 Mines zone layouts 1182 | -10/Materials | Learned 2 Materials zone layouts 1211 | -10/Materials | Entered Mines 1231 | -10/Mines | Received a Rocket Launcher from a helpful Derelict 1294 | -10/Mines | Met a Derelict bent on vengeance 1482 | -10/Mines | Assisted by bots powering up and referring to "LRC-V3" 1513 | -10/Mines | Discovered exit to Subcaves (range 10) 1514 | -10/Mines | Found a damaged Exp. Sensor Array with a note attached 1518 | -10/Mines | Found Prototype Device 1650 | -10/Mines | Learned Materials terminal intel 1678 | -10/Mines | Excavation squad dispatched 1678 | -10/Mines | A large section of the Mines collapsed 1798 | -10/Mines | Escorted by a lone wolf Derelict 1809 | -10/Mines | Discovered exit to Materials (range 12) 1818 | -10/Mines | Learned location of Storage (-8) 1840 | -10/Mines | Entered Materials 1840 | -9/Materials | Accompanied by 4 allies 1840 | -9/Materials | Evolved 2 slots: Utility x1, Weapon x1 1841 | -9/Materials | Identified exit to Mines 1842 | -9/Materials | Identified exit to Materials 1844 | -9/Materials | Loaded intel: 9 terminal locations 2248 | -9/Materials | Build established: Gunner 2972 | -9/Materials | Entered Mines 3062 | -9/Mines | Discovered exit to Materials (range 5) 3136 | -9/Mines | Identified exit to Exiles 3199 | -9/Mines | Build established: Tank 3211 | -9/Mines | Deemed a non-threat by the Exiles lab entrance 3221 | -9/Mines | Entered Exiles 3261 | -9/Exiles | Met 8R-AWN 3287 | -9/Exiles | Met EX-HEX 3405 | -9/Exiles | Met EX-BIN 3463 | -9/Exiles | Met EX-DEC 3472 | -9/Exiles | Learned location of Zion (-7) 3740 | -9/Exiles | Attacked by the Exiles 3910 | -9/Exiles | Lost 7 parts (2n1u4w) 3934 | -9/Exiles | Core integrity fell below 50% 3988 | -9/Exiles | Core integrity fell below 20% 4012 | -9/Exiles | Destroyed 8R-AWN 4018 | -9/Exiles | Lost 4 parts (2n2w) 4045 | -9/Exiles | Found 8R-AWN's Boregun 4048 | -9/Exiles | Found 8R-AWN's Boregun 4051 | -9/Exiles | Found Exp. Targeting Computer 4078 | -9/Exiles | Discovered new exit (range 10) 4087 | -9/Exiles | Entered Mines 4110 | -8/Mines | Discovered exit to Materials (range 6) 4116 | -8/Mines | Entered Materials 4116 | -8/Materials | Evolved 2 slots: Propulsion x1, Utility x1 4117 | -8/Materials | Identified exit to Storage 4483 | -8/Materials | Build established: Scavenger-Gunner 5146 | -8/Materials | Discovered new exit (range 15) 5401 | -8/Materials | Discovered new exit (range 15) 5809 | -8/Materials | Build established: Gunner 5912 | -8/Materials | Learned location of 1 exit from Lower Caves 5959 | -8/Materials | Learned 12 Factory zone layouts 5997 | -8/Materials | Learned Storage garrison access intel 6026 | -8/Materials | Learned location of 2 exits from Factory 6045 | -8/Materials | Learned location of 1 exit from Storage 6054 | -8/Materials | Learned location of 1 exit from Storage 6055 | -8/Materials | Learned Storage garrison access intel 6064 | -8/Materials | Identified exit to Factory 6109 | -8/Materials | Learned Factory emergency access door positions 6144 | -8/Materials | Learned 2 Storage zone layouts 6155 | -8/Materials | Entered Storage 6157 | -8/Storage | Identified exit to Recycling 6160 | -8/Storage | Loaded intel: 1 garrison access location 6860 | -8/Storage | Met 01-MTF 7359 | -8/Storage | Entered Recycling 7359 | -8/Recycling | Accompanied by 1 ally (01-MTF) 7360 | -8/Recycling | Identified exit to Factory 8157 | -8/Recycling | Scanned before Scraplab entrance 8244 | -8/Recycling | Angered Scraplab inhabitants 8253 | -8/Recycling | Destroyed KN-7UR 8374 | -8/Recycling | Found Prototype Device 8374 | -8/Recycling | Identified Scrap Engine 8819 | -8/Recycling | Build established: Construct 9113 | -8/Recycling | Entered Factory 9113 | -6/Factory | Evolved 4 slots: Power x1, Propulsion x1, Utility x1, Weapon x1 9114 | -6/Factory | Identified exit to Factory 9115 | -6/Factory | Identified exit to Lower Caves 9132 | -6/Factory | Identified Exp. Sensor Array 9144 | -6/Factory | Discovered exit to Factory (range 13) 9996 | -6/Factory | Entered Lower Caves 9997 | -6/Lower Caves | Identified exit to Lower Caves 10105 | -6/Lower Caves | Acquired the password to a Derelict Tinkerer's latest research 10356 | -6/Lower Caves | Learned Factory terminal intel 10813 | -6/Lower Caves | Learned Factory emergency access door positions 10893 | -6/Lower Caves | Entered another Lower Caves area 11264 | -6/Lower Caves | Learned 4 Factory zone layouts 11713 | -6/Lower Caves | Encountered a Warlord checkpoint 11772 | -6/Lower Caves | Discovered new exit (range 14) 11788 | -6/Lower Caves | Identified exit to Data Miner 11955 | -6/Lower Caves | Entered Data Miner 11955 | -6/Data Miner | Discovered new exit (range 6) 11978 | -6/Data Miner | Met Data Miner 12001 | -6/Data Miner | Learned location of Section 7 (-3) 12001 | -6/Data Miner | Acquired the access code to Warlord's prototype stash 12021 | -6/Data Miner | Received God Mode back door access code from Data Miner 12050 | -6/Data Miner | Identified exit to Proximity Caves 12051 | -6/Data Miner | Entered Proximity Caves 12287 | -5/Proximity Caves | Spotter reported a threat 12321 | -5/Proximity Caves | Learned Factory security intel 12394 | -5/Proximity Caves | Attracted the attention of an 0b10 checkpoint 12441 | -5/Proximity Caves | Spotter reported a threat 12477 | -5/Proximity Caves | Spotter reported a threat 12550 | -5/Proximity Caves | Discovered exit to Factory (range 13) 12976 | -5/Proximity Caves | Learned Factory terminal intel 12976 | -5/Proximity Caves | Learned location of 1 exit from Factory 12996 | -5/Proximity Caves | Attracted the attention of an 0b10 base 13001 | -5/Proximity Caves | Entered Factory 13001 | -5/Factory | Evolved 2 slots: Utility x2 13002 | -5/Factory | Identified exit to Upper Caves 13003 | -5/Factory | Identified exit to Factory 13007 | -5/Factory | Loaded intel: 28 terminal locations 13039 | -5/Factory | Sucked down chute 13039 | -5/Factory | Entered Waste 13040 | -5/Waste | Joined by Warlord forces that had cleared the area 13182 | -5/Waste | Discovered new exit (range 15) 13190 | -5/Waste | Found Heavy Servo Lattice 13219 | -5/Waste | A Compactor rumbled back to life 13219 | -5/Waste | Spotted C-40 Crusher 13219 | -5/Waste | Allies destroyed C-40 Crusher 13381 | -5/Waste | Identified exit to Factory 13394 | -5/Waste | Entered Factory 13394 | -5/Factory | Accompanied by 20 allies 13395 | -5/Factory | Loaded intel: 28 terminal locations 13556 | -5/Factory | Lost 4 allies 13618 | -5/Factory | Fabricated Adv. Target Analyzer? 13639 | -5/Factory | Discovered exit to Factory (range 7) 13694 | -5/Factory | First assault squad dispatched 13696 | -5/Factory | Discovered new exit (range 6) 13699 | -5/Factory | Identified exit to Extension 13716 | -5/Factory | Entered Extension 13716 | -5/Extension | Accompanied by 14 allies 13760 | -5/Extension | Disrupted transfer network 13807 | -5/Extension | Spotted B-75 Beast 13812 | -5/Extension | Destroyed B-75 Beast 13840 | -5/Extension | Spotted B-75 Beast 13872 | -5/Extension | Lost 4 allies 14032 | -5/Extension | Rescued A7 14059 | -5/Extension | Rescued a captive Derelict 14075 | -5/Extension | Rescued a captive Derelict 14076 | -5/Extension | Rescued a captive Derelict 14085 | -5/Extension | Rescued a captive Derelict 14087 | -5/Extension | Rescued a captive Derelict 14316 | -5/Extension | First assault squad dispatched 14317 | -5/Extension | Rescued a captive Derelict 14317 | -5/Extension | Rescued a captive Derelict 14403 | -5/Extension | Rescued a captive Derelict 14485 | -5/Extension | Rescued a captive Derelict 14558 | -5/Extension | Build established: Commander-Construct 14635 | -5/Extension | Learned Armory terminal intel 14657 | -5/Extension | Rescued a captive Derelict 14657 | -5/Extension | Rescued a captive Derelict 14691 | -5/Extension | Learned Quarantine interactive machine intel 14707 | -5/Extension | Rescued a captive Derelict 14713 | -5/Extension | Rescued a captive Derelict 14771 | -5/Extension | Learned location of Warlord (-5) 14800 | -5/Extension | Discovered exit to Factory (range 10) 14802 | -5/Extension | Discovered new exit (range 6) 14831 | -5/Extension | Learned Research repair station intel 14834 | -5/Extension | System corruption reached 10% 14859 | -5/Extension | Lost 5 allies 14867 | -5/Extension | Learned location of Proximity Caves (-5) 14997 | -5/Extension | Entered Cetus 14997 | -5/Cetus | Accompanied by 25 allies (A7) 14997 | -5/Cetus | 1 ally did not survive the journey 15002 | -5/Cetus | Acquired a Cetus Manufacturing Module code from A7 15024 | -5/Cetus | Spotted Cetus Guard 15024 | -5/Cetus | Spotted Cetus Guard 15026 | -5/Cetus | Spotted Cetus Guard 15033 | -5/Cetus | Spotted Cetus Guard 15035 | -5/Cetus | Destroyed Cetus Guard 15044 | -5/Cetus | Allies destroyed Cetus Guard 15044 | -5/Cetus | Allies destroyed Cetus Guard 15047 | -5/Cetus | Destroyed Cetus Guard 15073 | -5/Cetus | Lost 3 allies 15080 | -5/Cetus | Cetus Manufacturing Module disabled 15154 | -5/Cetus | Discovered new exit (range 16) 15177 | -5/Cetus | Spotted Cetus Guard 15178 | -5/Cetus | Spotted Cetus Guard 15182 | -5/Cetus | Spotted Cetus Guard 15183 | -5/Cetus | Spotted Cetus Guard 15188 | -5/Cetus | Allies destroyed Cetus Guard 15193 | -5/Cetus | Allies destroyed Cetus Guard 15195 | -5/Cetus | Allies destroyed Cetus Guard 15199 | -5/Cetus | Allies destroyed Cetus Guard 15209 | -5/Cetus | Discovered exit to Factory (range 15) 15215 | -5/Cetus | Met Revision 17 15394 | -5/Cetus | Murdered A7 15396 | -5/Cetus | Extracted ID and sensor layout for unrecognized location from A7's data core 15406 | -5/Cetus | Found Prototype Protection 15406 | -5/Cetus | Identified Med. Regenerative Plating 15460 | -5/Cetus | Entered Archives 15460 | -5/Archives | Accompanied by 18 allies 15522 | -5/Archives | Discovered exit to Factory (range 16) 15557 | -5/Archives | Discovered new exit (range 15) 15885 | -5/Archives | Discovered new exit (range 13) 16070 | -5/Archives | Entered Hub_04(d) 16070 | -5/Hub_04(d) | Accompanied by 15 allies 16388 | -5/Hub_04(d) | P-70 Sage assimilated allied M7-8LP(b) 16480 | -5/Hub_04(d) | Lost 3 allies 16501 | -5/Hub_04(d) | Discovered exit to Factory (range 22) 16514 | -5/Hub_04(d) | Disrupted transfer network 16579 | -5/Hub_04(d) | Network Hub disabled 16590 | -5/Hub_04(d) | Entered Factory 16590 | -4/Factory | Accompanied by 1 ally 16590 | -4/Factory | Evolved 2 slots: Utility x2 16613 | -4/Factory | Lost 10 allies 16695 | -4/Factory | Garrison activated, responded to threat 16840 | -4/Factory | First assault squad dispatched 16855 | -4/Factory | Incoming assault squad redirected 17186 | -4/Factory | Core integrity fell below 50% 17208 | -4/Factory | Incoming assault squad redirected 17219 | -4/Factory | Lost 4 parts (1p1u2w) 17281 | -4/Factory | Identified exit to Research 17362 | -4/Factory | Identified exit to Upper Caves 17362 | -4/Factory | Identified exit to Armory 17554 | -4/Factory | Entered Upper Caves 17592 | -4/Upper Caves | CL-ANK showed up to help 17594 | -4/Upper Caves | CL-ANK revealed a hidden path 17617 | -4/Upper Caves | Entered Research 17617 | -3/Research | Evolved 2 slots: Propulsion x2 17618 | -3/Research | Loaded intel: 4 repair station locations 17618 | -3/Research | Lost 5 parts (4u1w) 17713 | -3/Research | Fabricated Enh. Hardcell Cannon (x2) 17923 | -3/Research | Build established: Hacker-Scout 18046 | -3/Research | Found Prototype Hackware 18046 | -3/Research | Identified Exp. System Shield 18111 | -3/Research | Lost 3 parts (1p2u) 18154 | -3/Research | Spotted B-86 Titan 18156 | -3/Research | Core integrity fell below 50% 18205 | -3/Research | Core integrity fell below 20% 18241 | -3/Research | Destroyed by P-80 Master with Gamma Rifle Last Messages --------------- 18199_ Triggered Stasis Trap. 18199_ A bubble of rippling energy engulfs the area. 18199_ Field strength at 94. 18199_ Field strength at 88. 18200_ Field strength at 76. 18201_ Field strength at 70. 18202_ Field strength at 64. 18203_ Field strength at 44. 18204_ Field strength at 26. 18205_ Field strength at 20. 18206_ Field strength at 1. 18207_ Stasis field depleted. 18222_ Imp. System Shield destroyed. 18224_ ALERT: Potential suspicious activity detected, Programmers report to Research Zone 9M. 18233_ System corrupted: Component data lost. 18238_ Slammed into P-80 Master. 18238_ P-80 Master knocked back. 18239_ Slammed into P-80 Master. 18240_ Imp. Hacking Suite destroyed. Map ----- +----------------------------------------------------+ | ?????????????????????????????????????????????????? | | ?????????????????????????????????????????????????? | | ?????????????????????????????????????????????????? | | ?????????????????????????????????????????????????? | | ?????????????????????????????????????????????????? | | ?????????????????????????????????????????????????? | | ?????????????????????????????????????????????????? | | ?????????????????????????????????????????????????? | | ?????????????????????????????????????????????????? | | ?????????????????????????????????????????????????? | | ?????????????????????????????????????????????????? | | ?????????????????????????????????????????????????? | | ?????????????????????????????????????????????????? | | ?????????????????????????????????????????????????? | | ?????????????????????????????????????????????????? | | ?????????????????????????????????????????? ??????? | | ??????????????????????????????????????? #?????? | | ???????????????????????????#####???? ???? | | ???????????????????????????# ### ???? | | ???????????????????????????# ???? | | ???????????????????????????# ### ???? | | ??????????????????????#????## ##???????? ???? | | ??????????????????????# ????# #??????????????????? | | ???????????????########+##### #??????????????????? | | ???????????????#! # #??????????????????? | | ???????????????# @ p# ###????????????????? | | ???????????????# /p +????????????????? | | ???????????????# """ """ # ###????????????????? | | ???????????????# """ k""" # #??????????????????? | | ????????????????? """ """ # #??????????????????? | | ??????????????????""" """ # #??????????????????? | | ??????????????????""" """ # #??????????????????? | | ???????????????# + #??????????????????? | | ???????????????# # #??????????????????? | | ???????????????# ! # #??????????????????? | | ???????????????# # #??????????????????? | | ???????????????#######+###### #########?????????"" | | ?????#/###########?# + #???????"R | | ?????# # ####### #???????"" | | ?????# ! # #?????? "" #????????" | | ?????# + #??????? "Y +????????? | | ???? / # #??????? "" #????????? | | ?????# # #???????? #????????? | | ?????# ?# #???????? [ ??????????? | | ?????#+############# #????????? ???????????? | | ???? #?????????####???????????? | | ???? #????????????????????????? | | ????????#########+## ##########???????????????? | | ???????????????????# # #??###########??? | | ???????????????????# # #??# [ #??? | +----------------------------------------------------+ Best States ------------- Heat Dissipation 95 Energy Generation 47 Energy Capacity 1038 Matter Stores 300 Matter Capacity 300 Sight Range 16 Robot Scan Range 20 Terrain Scan Density 10 Base Temperature (-) 150 Armor Coverage 225 Weapon Cycling 25 Evasion (%) 61 Targeting Accuracy 12 Target Analysis 6 Recoil Reduction 4 Salvage Targeting 1 Offensive Hacking 24 Defensive Hacking 28 Item Schematics ----------------- Huge Storage Unit | -8/Recycling | Hacked Combat Drone Bay | -6/Data Miner | Free Lgt. Regenerative Plating | -6/Data Miner | Free Cld. Nuclear Pulse Thruster | -6/Data Miner | Free Prc. Matter Filter | -6/Data Miner | Free Hvy. Proton Cannon | -6/Data Miner | Free Impulse Thruster | -6/Data Miner | Free Lrn. Terrain Scanner | -6/Data Miner | Free Hvy. Gauss Cannon | -6/Data Miner | Free Adv. Heavy Treads | -4/Factory | Hacked Robot Schematics ------------------ G-34 Mercenary | -8/Recycling | Hacked S-10 Pest | -8/Recycling | Hacked S-27 Virus | -6/Data Miner | Free X-62 Marksman | -6/Data Miner | Free B-60 Warrior | -6/Data Miner | Free X-72 Disruptor | -6/Data Miner | Free R-10 Processor | -6/Data Miner | Free L-61 Swordsman | -6/Data Miner | Free Fabricated ------------ Adv. Target Analyzer | x2 | -5/Factory | Preloaded Enh. Hardcell Cannon | x2 | -3/Research | Preloaded Repaired ---------- Nothing Alien Tech Used ----------------- None Achievements -------------- None Challenges ------------ None Game ------ Seed FortressScrapFirepult Manual? 0 Play Time 02:37:37 Cumulative 415.6 hours Start 2025.08.14 @ 11:22:33 End 2025.08.14 @ 14:12:27 Sessions 1 Manual Loads 0 Difficulty Rogue Special Mode None Game No. 274 Rogue 274 Adventurer 0 Explorer 0 Win Type - Total 28 Types 22/0/4/2/0/0/0/0/0/0 Lore% 91 Gallery% 82 Achievement% 68 Wizard Run 0 Options --------- Layout 0 ASCII 1 Keyboard 1 Movement Arrows Keybinds 0 Fullscreen 2 Font 18/Terminus Map View 76x50 Zoom Use 0% Tactical HUD 1 Map Filters NONE Filters NONE Steam 1 RUN: db674c4e-0aeb-4375-8181-15fcda4f2ba5